bitfinex/quotes_SOLUSD_20251002
["timestamp","ask_amount","ask_price","bid_price","bid_amount"]
[1759378344698,37.18531725,224.96,224.91,20.8]
[1759378344899,0.7,224.95,224.91,20.8]
[1759378345203,36.48531725,224.96,224.91,20.8]
[1759378345204,0.7,224.94,224.91,20.8]
[1759378345395,0.7,224.95,224.91,20.8]
[1759378346091,0.7,224.94,224.91,20.8]
[1759378346400,0.7,224.93,224.87,20.8]
[1759378346590,0.7,224.93,224.82,0.71]
[1759378346591,11.57647521,224.92,224.82,0.71]
[1759378346906,4.44642063,224.9,224.85,20.8]
[1759378347088,0.7,224.89,224.85,20.8]
[1759378347401,0.7,224.88,224.85,20.8]
[1759378347805,0.7,224.88,224.83,25.24762271]
[1759378348011,0.7,224.88,224.83,25.95762271]
[1759378349099,0.7,224.88,224.84,0.71]
[1759378349495,0.7,224.88,224.87,20.8]
[1759378350096,32.02,224.91,224.85,20.8]
[1759378350301,32.02,224.91,224.87,20.8]
[1759378350680,32.02,224.91,224.87,21.51]
[1759378350877,0.7,224.9,224.86,20.8]
[1759378351093,0.7,224.89,224.83,5.15780035]
[1759378351291,5.14668187,224.89,224.83,25.95780035]
[1759378353195,0.7,224.89,224.83,25.95780035]
[1759378353391,37.166355,224.91,224.84,0.71]
[1759378353905,0.7,224.92,224.86,20.8]
[1759378354112,0.7,224.91,224.84,0.71]
[1759378354412,4.44642063,224.9,224.84,5.15756506]
[1759378355404,5.14622592,224.91,224.84,5.15756506]
[1759378356603,5.14650779,224.9,224.84,5.15756506]
[1759378357112,0.7,224.89,224.83,25.2477922]
[1759378357412,11.57647521,224.91,224.84,0.71]
[1759378358224,16.02271241,224.91,224.84,5.15747588]
[1759378358514,0.7,224.9,224.84,5.15747588]
[1759378358694,32.64,224.9,224.84,5.15747588]
[1759378359318,0.7,224.9,224.84,5.15747588]
[1759378359523,0.7,224.89,224.83,20.8]
[1759378359706,0.7,224.88,224.83,20.8]
[1759378359889,36.3864923,224.9,224.74,3.82844026]
[1759378359890,0.7,224.87,224.78,11.12198594]
[1759378360097,0.7,224.87,224.81,21.51]
[1759378360622,31.94,224.89,224.82,0.71]
[1759378360822,13.2059902,224.93,224.83,20.8]
[1759378360823,11.57647521,224.93,224.83,20.8]
[1759378361128,32.62,224.92,224.84,0.71]
[1759378361611,32.62,224.92,224.87,20.8]
[1759378361823,0.7,224.91,224.85,0.71]
[1759378361995,13.9059902,224.91,224.83,21.51]
[1759378362195,0.7,224.9,224.83,21.51]
[1759378362391,13.2059902,224.91,224.83,21.51]
[1759378362597,0.7,224.89,224.83,20.8]
[1759378362820,0.7,224.89,224.83,21.51]
[1759378363330,5.14664405,224.89,224.83,0.71]
[1759378363693,5.14664405,224.89,224.83,21.51]
[1759378363889,0.7,224.88,224.83,20.8]
[1759378364296,0.7,224.88,224.83,21.51]
[1759378365113,0.7,224.88,224.83,25.95778881]
[1759378365420,0.7,224.88,224.84,0.71]
[1759378365818,0.7,224.87,224.83,20.8]
[1759378366006,0.7,224.86,224.83,20.8]
[1759378366409,5.14687825,224.88,224.83,21.51]
[1759378366607,5.14687825,224.88,224.83,0.71]
[1759378367131,0.7,224.88,224.83,20.8]
[1759378367431,4.44663134,224.89,224.84,0.71]
[1759378367593,5.14663134,224.89,224.84,0.71]
[1759378368616,4.44642063,224.9,224.84,0.71]
[1759378368817,0.7,224.88,224.84,20.8]
[1759378369122,0.7,224.87,224.82,4.44796775]
[1759378369303,0.7,224.87,224.84,20.8]
[1759378369507,0.7,224.86,224.84,20.8]
[1759378369704,0.7,224.86,224.81,25.95817743]
[1759378369901,0.7,224.85,224.81,20.8]
[1759378370924,5.14719805,224.87,224.81,25.95807436]
[1759378371932,36.98719805,224.87,224.81,25.95807436]
[1759378372309,0.7,224.86,224.83,20.8]
[1759378373136,4.44719805,224.87,224.81,25.95810223]
[1759378373307,36.26719805,224.87,224.81,25.95810223]
[1759378374006,4.44719805,224.87,224.81,25.95810223]
[1759378374430,36.26719805,224.87,224.81,25.95810223]
[1759378375432,36.91719805,224.87,224.81,25.95810223]
[1759378376141,31.8,224.86,224.81,25.95810223]
[1759378376433,0.65,224.85,224.81,25.95810223]
[1759378377047,31.8,224.86,224.81,25.95810223]
[1759378377217,32.45,224.86,224.81,25.95810223]
[1759378377427,32.45,224.86,224.82,0.71]
[1759378377831,31.78,224.86,224.82,0.71]
[1759378378033,32.43,224.86,224.82,0.71]
[1759378379950,32.43,224.86,224.82,5.15799699]
[1759378380337,31.76,224.88,224.83,0.71]
[1759378380534,0.65,224.87,224.84,20.8]
[1759378381054,0.65,224.87,224.85,20.8]
[1759378381633,31.76,224.87,224.85,20.8]
[1759378383159,31.74,224.89,224.86,0.71]
[1759378383350,31.74,224.89,224.85,20.8]
[1759378383554,31.74,224.89,224.87,0.71]
[1759378384257,5.09603372,224.92,224.87,0.71]
[1759378384557,32.39,224.91,224.87,0.71]
[1759378384935,32.39,224.91,224.86,4.4471201]
[1759378385136,32.39,224.91,224.86,5.1571201]
[1759378385560,0.65,224.91,224.86,5.1571201]
[1759378385763,31.74,224.9,224.86,5.1571201]
[1759378386661,32.39,224.9,224.86,5.1571201]
[1759378387259,31.72,224.89,224.86,5.1571201]
[1759378389363,31.7,224.9,224.86,5.1571201]
[1759378389556,32.35,224.9,224.86,5.1571201]
[1759378390565,3.74385843,225.02,224.89,20.8]
[1759378390869,0.65,225.01,224.93,20.8]
[1759378391362,0.65,225.01,224.94,0.71]
[1759378391862,0.65,225.03,224.94,0.71]
[1759378392236,10.87647521,225.02,224.94,0.71]
[1759378392553,0.65,225.01,224.9,11.11564943]
[1759378392863,0.65,225.0,224.92,20.8]
[1759378393064,0.65,224.99,224.93,0.71]
[1759378393758,5.09468189,224.99,224.96,20.8]
[1759378393963,0.65,224.98,224.9,0.71]
[1759378394461,13.2059902,224.97,224.87,43.64727569]
[1759378394674,0.65,224.96,224.9,20.8]
[1759378394968,0.65,224.98,224.91,21.51]
[1759378395139,0.65,224.98,224.92,0.71]
[1759378395674,31.84,224.99,224.93,4.44582759]
[1759378395854,31.84,224.99,224.96,20.8]
[1759378396194,32.49,224.99,224.96,20.8]
[1759378396978,36.28465661,224.99,224.96,20.8]
[1759378397138,36.93465661,224.99,224.96,20.8]
[1759378397639,36.93465661,224.99,224.86,15.56493736]
[1759378397640,0.65,224.98,224.86,15.56493736]
[1759378397844,31.84,224.99,224.92,0.71]
[1759378398664,31.84,224.99,224.93,20.8]
[1759378398881,31.84,224.99,224.94,0.71]
[1759378399243,32.49,224.99,224.95,0.71]
[1759378399944,32.49,224.99,224.97,20.8]
[1759378401153,31.84,224.99,224.96,20.8]
[1759378401472,0.65,225.02,224.97,0.71]
[1759378401665,31.78,225.03,224.97,0.71]
[1759378401868,0.65,225.01,224.97,0.71]
[1759378402541,0.65,225.01,224.96,20.8]
[1759378402947,0.65,225.01,224.96,21.51]
[1759378403858,0.65,225.01,224.97,4.44503711]
[1759378404369,0.68,225.04,224.98,0.66]
[1759378404547,0.68,225.03,224.97,20.8]
[1759378404748,2.32951499,225.04,224.97,20.8]
[1759378404948,0.68,225.02,224.97,20.8]
[1759378405166,0.68,225.02,224.97,0.66]
[1759378405543,0.68,225.02,224.97,5.10492015]
[1759378405964,0.68,225.02,224.97,4.44492015]
[1759378406156,0.68,225.02,224.98,0.66]
[1759378407846,0.1,225.05,225.01,20.8]
[1759378408173,0.1,225.05,225.02,0.66]
[1759378408347,0.1,225.05,225.03,31.92]
[1759378408547,0.1,225.05,225.04,0.66]
[1759378408764,0.1,225.05,225.03,0.66]
[1759378409544,0.1,225.05,225.04,0.66]
[1759378411207,0.1,225.05,225.04,21.46]
[1759378411674,0.1,225.05,225.04,25.90365446]
[1759378415905,0.1,225.05,225.04,25.24365446]
[1759378416204,0.1,225.05,225.04,25.90365446]
[1759378416586,0.1,225.05,225.04,26.40365446]
[1759378416989,0.1,225.05,225.04,0.5]
[1759378417175,0.1,225.05,225.04,32.5]
[1759378417496,0.1,225.05,225.04,37.60365446]
[1759378418871,0.1,225.05,225.04,36.94365446]
[1759378420189,0.1,225.05,225.04,5.60365446]
[1759378420369,0.1,225.05,225.04,25.74365446]
[1759378420571,0.78,225.05,225.04,21.3]
[1759378420997,0.1,225.05,225.04,21.3]
[1759378421873,0.1,225.05,225.04,26.40365446]
[1759378422072,0.1,225.05,225.04,25.74365446]
[1759378425200,0.1,225.05,225.04,4.44365446]
[1759378428401,0.1,225.05,225.04,25.24365446]
[1759378428604,0.1,225.05,225.04,4.44365446]
[1759378430607,0.1,225.05,225.04,5.10365446]
[1759378431782,0.1,225.05,225.04,37.00365446]
[1759378432704,0.78,225.05,224.95,13.34371177]
[1759378432911,0.68,225.04,224.97,0.66]
[1759378433290,0.68,225.04,225.0,20.8]
[1759378433498,0.68,225.03,225.02,20.8]
[1759378433802,0.68,225.03,224.99,31.9]
[1759378433998,0.68,225.03,225.02,20.8]
[1759378434404,0.68,225.03,224.99,20.8]
[1759378434596,0.71,225.02,224.94,5.12562994]
[1759378434790,4.44365446,225.04,224.95,31.9]
[1759378434791,0.71,225.01,224.95,31.9]
[1759378434995,0.71,225.0,224.95,31.9]
[1759378435206,1.48842537,225.03,224.98,20.8]
[1759378435412,0.71,224.99,224.98,20.8]
[1759378436611,0.71,224.99,224.97,20.8]
[1759378438593,0.71,225.01,224.97,20.8]
[1759378438792,0.71,225.0,224.97,20.8]
[1759378439509,0.71,224.99,224.98,20.8]
[1759378440889,0.71,225.01,224.98,20.8]
[1759378441093,0.71,225.0,224.98,20.8]
[1759378444913,0.71,224.99,224.95,20.8]
[1759378445106,0.71,224.98,224.94,4.44547938]
[1759378445501,0.71,224.98,224.96,20.8]
[1759378447416,0.71,224.98,224.95,20.8]
[1759378447801,1.48842537,225.02,224.96,0.68]
[1759378447802,5.1540635,225.02,224.96,0.68]
[1759378448617,6.64248887,225.02,224.96,20.8]
[1759378448817,6.64248887,225.02,224.93,5.12581596]
[1759378448818,5.93248887,225.02,224.93,5.12581596]
[1759378449021,0.71,225.01,224.93,5.12581596]
[1759378449216,0.71,225.03,224.94,0.68]
[1759378449398,0.71,225.03,224.94,32.48]
[1759378449723,0.71,225.03,224.95,0.68]
[1759378449909,0.71,225.03,224.97,20.8]
[1759378450108,0.71,225.02,224.97,20.8]
[1759378450421,0.71,225.01,224.97,21.48]
[1759378451302,0.71,225.01,224.97,25.92493354]
[1759378452719,0.71,225.03,224.97,25.24493354]
[1759378452927,0.71,225.03,224.98,0.68]
[1759378453112,0.71,225.02,224.97,20.8]
[1759378453426,1.48842537,225.03,224.97,21.48]
[1759378453619,0.71,225.03,224.97,25.92499788]
[1759378455519,5.15402088,225.03,224.97,25.92499788]
[1759378455901,1.48842537,225.01,224.93,0.68]
[1759378456097,2.19842537,225.0,224.93,0.68]
[1759378456302,2.19842537,225.0,224.94,20.8]
[1759378456517,0.71,225.0,224.94,20.8]
[1759378457012,0.71,225.0,224.91,13.23995264]
[1759378457013,0.71,225.0,224.95,21.48]
[1759378457721,5.15454418,225.0,224.95,0.68]
[1759378457914,5.15454418,225.0,224.94,4.44562776]
[1759378458114,5.15454418,225.0,224.96,0.68]
[1759378460624,5.15454418,225.0,224.94,5.12562668]
[1759378463224,5.15454418,225.0,224.94,21.48]
[1759378463745,4.44454418,225.0,224.94,21.48]
[1759378463916,0.69,224.99,224.94,21.48]
[1759378464416,0.69,224.98,224.94,21.48]
[1759378466012,0.69,224.97,224.9,0.72]
[1759378466216,1.48842537,224.96,224.92,20.8]
[1759378466423,0.69,224.95,224.92,20.8]
[1759378466732,1.48842537,224.96,224.9,0.72]
[1759378466733,0.69,224.94,224.9,0.72]
[1759378467108,0.69,224.94,224.92,20.8]
[1759378467531,0.69,224.94,224.9,0.72]
[1759378467719,0.69,224.93,224.88,0.72]
[1759378467919,0.69,224.96,224.9,20.8]
[1759378468221,0.69,224.96,224.9,21.52]
[1759378468631,0.69,224.96,224.9,20.8]
[1759378468842,31.72,224.98,224.91,0.72]
[1759378469004,36.16493559,224.98,224.91,5.16603295]
[1759378469332,36.16493559,224.98,224.92,0.72]
[1759378469528,32.41,224.98,224.94,20.8]
[1759378470732,11.56647521,225.02,224.94,20.8]
[1759378470922,0.69,225.0,224.96,4.4452347]
[1759378471515,4.4440615,225.02,224.96,5.1652347]
[1759378471516,4.1340615,225.02,224.96,5.1652347]
[1759378473405,4.8240615,225.02,224.96,5.1652347]
[1759378474325,36.5240615,225.02,224.96,5.1652347]
[1759378474829,0.1,225.05,224.97,0.72]
[1759378475028,0.1,225.05,224.99,20.8]
[1759378475422,0.1,225.05,225.0,0.72]
[1759378475831,0.1,225.05,225.01,0.72]
[1759378476037,0.1,225.05,225.02,0.72]
[1759378476535,4.54349005,225.05,224.99,4.44445719]
[1759378476718,4.54349005,225.05,225.0,0.72]
[1759378476922,4.54349005,225.05,225.01,0.72]
[1759378477723,4.54349005,225.05,224.97,20.8]
[1759378478040,6.03191542,225.05,224.98,0.72]
[1759378479418,4.54349005,225.05,224.98,5.16478121]
[1759378479616,6.03191542,225.05,224.99,21.52]
[1759378480337,6.87061617,225.05,225.0,0.72]
[1759378480833,4.54349005,225.05,225.0,0.72]
[1759378481042,0.1,225.05,225.01,0.72]
[1759378481218,0.1,225.05,225.02,0.72]
[1759378481419,0.1,225.05,225.03,0.72]
[1759378482735,0.1,225.05,224.99,25.24461898]
[1759378482736,4.54347855,225.05,225.01,0.72]
[1759378482938,4.54347855,225.05,225.02,0.72]
[1759378483146,4.54347855,225.05,225.0,0.72]
[1759378483720,4.54347855,225.05,224.99,25.24461898]
[1759378483925,4.54347855,225.05,225.01,0.72]
[1759378484136,4.54347855,225.05,225.02,0.72]
[1759378485016,4.54347855,225.05,225.0,4.44443719]
[1759378485324,36.18347855,225.05,225.02,0.72]
[1759378485925,36.16347855,225.05,225.02,0.72]
[1759378486134,36.16347855,225.05,225.0,4.44443719]
[1759378486332,36.16347855,225.05,225.01,0.72]
[1759378487841,36.85347855,225.05,225.01,0.72]
[1759378490635,36.16347855,225.05,225.01,0.72]
[1759378491649,36.85347855,225.05,224.99,25.96463631]
[1759378491821,11.70863678,225.04,224.93,3.71508617]
[1759378492025,2.32712612,224.99,224.92,0.72]
[1759378492247,34.08712612,224.98,224.92,0.72]
[1759378492634,31.76,224.98,224.92,0.72]
[1759378492837,4.44503711,224.97,224.92,0.72]
[1759378493047,4.44503711,224.97,224.93,0.72]
[1759378494453,0.68,224.96,224.9,0.66]
[1759378495154,0.68,224.96,224.9,5.1063903]
[1759378495322,4.44503711,224.97,224.91,0.66]
[1759378496031,0.68,225.03,224.94,20.8]
[1759378496262,0.68,225.03,224.95,21.46]
[1759378496755,0.68,225.03,224.96,0.66]
[1759378497054,36.18365446,225.04,224.96,0.66]
[1759378498049,36.18365446,225.04,224.99,20.8]
[1759378498351,36.18365446,225.04,225.0,0.66]
[1759378498550,31.74,225.04,225.01,0.66]
[1759378498749,10.97647521,225.05,225.01,0.66]
[1759378498750,31.82,225.05,225.01,0.66]
[1759378499322,0.1,225.05,225.02,0.66]
[1759378499548,0.1,225.05,225.03,0.66]
[1759378500327,0.1,225.05,225.04,0.66]
[1759378500641,0.1,225.05,225.04,21.46]
[1759378502466,0.1,225.05,225.04,25.90365446]
[1759378503267,0.1,225.05,225.01,0.66]
[1759378503565,0.1,225.05,225.02,20.8]
[1759378504130,0.1,225.05,225.02,21.46]
[1759378504357,0.1,225.05,225.04,20.8]
[1759378505546,0.1,225.05,225.02,20.8]
[1759378505964,0.1,225.05,225.02,21.46]
[1759378506160,4.54348113,225.05,224.99,0.66]
[1759378506400,3.00712612,225.04,224.97,0.66]
[1759378506687,4.44385193,225.03,224.97,0.66]
[1759378506865,4.44385193,225.03,224.97,5.10501074]
[1759378507462,4.44385193,225.03,224.97,0.66]
[1759378507463,5.12385193,225.03,224.97,0.66]
[1759378507677,5.12385193,225.03,224.97,5.10503426]
[1759378508390,5.12385193,225.03,225.0,20.8]
[1759378508683,4.44385193,225.03,225.0,20.8]
[1759378508872,5.12385193,225.03,225.0,20.8]
[1759378509072,0.14216157,224.99,224.86,4.95233303]
[1759378509388,0.14216157,224.99,224.89,0.66]
[1759378509389,2.32712612,224.96,224.89,0.66]
[1759378509691,3.00712612,224.96,224.89,0.66]
[1759378510578,4.44543231,224.95,224.89,0.66]
[1759378510879,4.44543231,224.95,224.89,5.10660538]
[1759378511082,4.44543231,224.95,224.89,0.66]
[1759378511384,4.44543231,224.95,224.9,20.8]
[1759378511580,5.12543231,224.95,224.9,21.46]
[1759378512877,5.12543231,224.95,224.9,20.8]
[1759378513199,11.55647521,224.94,224.85,0.66]
[1759378513485,2.32712612,224.93,224.85,21.46]
[1759378513787,0.68,224.92,224.85,21.46]
[1759378514382,13.3457629,224.9,224.82,5.10783087]
[1759378514592,3.00712612,224.89,224.82,0.66]
[1759378514962,10.87647521,224.88,224.82,0.66]
[1759378515565,10.87647521,224.88,224.84,20.8]
[1759378515785,11.55647521,224.88,224.84,20.8]
[1759378516171,11.55647521,224.88,224.82,25.90798312]
[1759378516864,10.87647521,224.88,224.82,25.90798312]
[1759378518081,10.87647521,224.89,224.83,5.10771462]
[1759378518268,10.87647521,224.89,224.83,4.44771462]
[1759378518465,10.87647521,224.89,224.84,0.66]
[1759378518793,11.55647521,224.89,224.84,0.66]
[1759378519457,16.00310418,224.89,224.84,0.66]
[1759378520497,15.32310418,224.89,224.83,4.44771462]
[1759378520804,11.01863678,224.93,224.84,0.66]
[1759378521091,0.14216157,224.91,224.84,0.66]
[1759378522069,10.87647521,224.9,224.84,5.1074783]
[1759378522271,3.00712612,224.89,224.82,20.8]
[1759378522496,0.68,224.89,224.83,20.8]
[1759378522674,3.00712612,224.88,224.82,0.66]
[1759378522991,0.68,224.88,224.83,20.8]
[1759378523194,0.68,224.87,224.83,20.8]
[1759378523374,2.32712612,224.89,224.84,20.8]
[1759378523579,13.85360133,224.9,224.84,20.8]
[1759378524293,10.87647521,224.9,224.85,0.68]
[1759378524481,11.01863678,224.91,224.86,20.8]
[1759378524797,11.01863678,224.91,224.87,0.68]
[1759378524970,31.66,224.92,224.88,0.68]
[1759378525476,11.01863678,224.93,224.88,0.68]
[1759378525801,0.69,224.92,224.86,21.48]
[1759378525974,0.69,224.92,224.86,25.92712997]
[1759378527093,31.64,224.93,224.87,0.68]
[1759378527983,10.87647521,224.95,224.87,0.68]
[1759378528183,31.64,224.94,224.87,0.68]
[1759378529216,15.32196596,224.95,224.9,20.8]
[1759378529388,46.96196596,224.95,224.9,20.8]
[1759378529591,0.69,224.94,224.88,0.68]
[1759378530481,0.69,224.94,224.9,20.8]
[1759378531351,31.64,224.94,224.9,0.68]
[1759378531687,31.64,224.94,224.91,0.68]
[1759378531895,31.64,224.94,224.89,4.44661834]
[1759378532093,36.08564454,224.94,224.9,20.8]
[1759378532800,4.44564454,224.94,224.89,0.68]
[1759378533003,36.08564454,224.94,224.89,0.68]
[1759378533390,31.64,224.94,224.89,5.12652978]
[1759378533591,31.64,224.94,224.9,0.68]
[1759378533797,31.64,224.94,224.91,0.68]
[1759378534006,31.64,224.94,224.89,4.44652978]
[1759378534311,31.64,224.94,224.91,0.68]
[1759378534484,31.64,224.94,224.92,0.68]
[1759378534884,31.64,224.94,224.93,0.68]
[1759378535105,10.87647521,224.99,224.93,0.68]
[1759378535305,31.64,224.98,224.93,0.68]
[1759378535489,31.64,224.98,224.94,0.68]
[1759378536484,31.64,224.98,224.95,0.68]
[1759378536801,31.64,224.98,224.96,0.68]
[1759378538606,31.64,224.98,224.95,4.44536358]
[1759378538915,31.64,224.98,224.95,5.12536358]
[1759378541092,31.64,224.98,224.95,0.68]
[1759378543000,31.64,224.98,224.94,21.48]
[1759378543196,31.64,224.98,224.94,25.9255796]
[1759378544313,31.64,224.98,224.94,25.2455796]
[1759378544512,31.64,224.98,224.96,20.8]
[1759378546610,31.64,224.98,224.96,25.24523104]
[1759378547007,31.64,224.98,224.97,0.68]
[1759378547214,31.64,225.01,224.97,0.68]
[1759378547392,32.33,225.01,224.96,25.24523104]
[1759378547596,32.33,225.01,224.97,0.68]
[1759378547797,32.33,225.01,224.96,25.24523104]
[1759378548022,32.33,225.01,224.96,25.92523104]
[1759378548603,32.33,225.01,224.97,0.68]
[1759378549017,36.77430962,225.01,224.97,0.68]
[1759378549218,36.77430962,225.01,224.96,20.8]
[1759378549404,31.64,225.01,224.97,0.68]
[1759378549603,32.33,225.01,224.96,4.44522025]
[1759378549809,32.33,225.01,224.96,5.12522025]
[1759378550010,0.69,225.0,224.96,25.24522025]
[1759378550205,31.64,225.01,224.96,25.92522025]
[1759378550408,32.33,225.01,224.96,25.92522025]
[1759378550611,31.64,225.01,224.96,25.92522025]
[1759378550816,0.69,225.0,224.96,25.24522025]
[1759378551020,0.69,225.0,224.96,25.92522025]
[1759378552625,31.64,225.01,224.96,25.92522025]
[1759378552927,32.33,225.01,224.96,25.92522025]
[1759378553608,0.69,225.0,224.96,20.8]
[1759378553834,0.69,224.99,224.96,20.8]
[1759378554205,33.81982161,225.01,224.96,25.24521435]
[1759378554406,0.69,225.0,224.96,25.24521435]
[1759378554606,31.64,225.01,224.96,25.96521435]
[1759378554807,31.64,225.01,224.99,20.8]
[1759378555634,31.64,225.01,224.98,4.44474508]
[1759378555815,10.97647521,225.05,224.99,0.72]
[1759378556016,31.72,225.05,224.99,0.72]
[1759378557341,32.41,225.05,224.99,0.72]
[1759378557520,33.89982161,225.05,224.99,0.72]
[1759378557740,38.34328345,225.05,224.99,0.72]
[1759378558448,38.34328345,225.05,224.99,5.1646375]
[1759378559243,32.41,225.05,225.0,0.72]
[1759378559745,32.41,225.05,224.99,4.4446375]
[1759378559746,31.72,225.05,225.01,0.72]
[1759378560042,31.72,225.05,225.02,0.72]
[1759378560249,32.41,225.05,224.99,5.1646375]
[1759378560448,31.72,225.05,224.99,0.72]
[1759378560745,0.69,225.04,224.99,0.72]
[1759378560923,0.69,225.04,225.0,0.72]
[1759378561122,36.16361835,225.05,225.0,0.72]
[1759378561548,36.85361835,225.05,225.0,0.72]
[1759378561748,0.69,225.04,224.99,5.16459025]
[1759378561930,0.69,225.04,225.0,0.72]
[1759378562250,36.16361835,225.05,225.0,0.72]
[1759378562442,36.85361835,225.05,225.0,0.72]
[1759378562643,32.41,225.05,225.0,5.16442734]
[1759378563448,36.85353241,225.05,225.0,0.72]
[1759378563642,0.69,225.04,225.0,0.72]
[1759378563851,0.69,225.04,225.0,5.16441575]
[1759378565351,31.72,225.05,225.0,5.16441575]
[1759378565649,0.1,225.05,225.0,5.16441575]
[1759378565944,0.69,225.04,225.0,4.44441575]
[1759378566553,4.54345869,225.05,225.0,5.16441575]
[1759378566733,5.23345869,225.05,225.0,5.16441575]
[1759378567837,0.79,225.05,225.0,4.44441575]
[1759378568349,0.79,225.05,225.01,0.72]
[1759378568735,0.1,225.05,225.01,0.72]
[1759378569862,0.1,225.05,225.01,21.52]
[1759378570061,0.1,225.05,225.03,20.8]
[1759378571770,0.1,225.05,225.03,21.52]
[1759378572147,0.1,225.05,225.03,20.8]
[1759378572536,4.54361855,225.05,225.01,0.72]
[1759378572744,0.69,225.04,224.92,0.28432314]
[1759378573037,0.1,225.05,224.95,20.8]
[1759378573367,0.1,225.05,224.96,0.72]
[1759378574235,0.1,225.05,224.99,20.8]
[1759378574443,0.1,225.05,225.0,21.52]
[1759378574831,0.1,225.05,225.01,0.72]
[1759378575030,0.1,225.05,225.02,0.72]
[1759378575250,0.1,225.05,225.0,20.8]
[1759378575444,0.1,225.05,225.03,0.72]
[1759378577365,0.1,225.05,225.0,25.24444196]
[1759378577569,0.1,225.05,225.01,0.72]
[1759378577864,0.1,225.05,225.02,0.72]
[1759378578445,4.54352341,225.05,225.02,0.72]
[1759378580573,4.54352341,225.05,225.0,25.24444196]
[1759378580763,0.1,225.05,225.01,0.72]
[1759378580957,4.54347482,225.05,225.01,0.72]
[1759378581557,5.24347482,225.05,225.0,20.8]
[1759378581872,0.1,225.05,225.01,0.67]
[1759378582449,0.1,225.05,225.0,4.44441021]
[1759378582650,0.1,225.05,225.02,0.67]
[1759378585172,0.1,225.05,225.03,20.8]
[1759378586178,0.1,225.05,225.03,21.47]
[1759378586474,4.54353563,225.05,225.03,21.47]
[1759378586651,4.54353563,225.05,225.03,20.8]
[1759378587582,4.54353563,225.05,225.03,21.47]
[1759378587876,4.54353563,225.05,225.03,20.8]
[1759378588467,4.54353563,225.05,225.01,0.67]
[1759378588664,5.23353563,225.05,225.01,21.47]
[1759378588859,5.23353563,225.05,225.01,20.8]
[1759378589058,0.69,225.04,224.99,0.67]
[1759378589261,0.69,225.03,224.97,0.67]
[1759378589461,0.69,225.03,224.99,20.8]
[1759378589962,4.444039,225.03,224.99,0.67]
[1759378590369,4.444039,225.03,225.0,0.67]
[1759378590970,15.46229124,225.04,225.0,0.67]
[1759378591169,16.15229124,225.04,225.0,0.67]
[1759378591989,16.15229124,225.04,224.98,0.67]
[1759378592158,17.64211285,225.04,224.98,0.67]
[1759378592881,16.15229124,225.04,224.99,20.8]
[1759378593060,16.95211285,225.04,224.97,20.8]
[1759378593384,0.69,225.03,224.97,21.47]